Workbook

Sheet Sheet1
B2: 2 ADET KOLONLU RİJİT SÜREKLİ TEMEL MOMENT VE KESME KUVVET HESABI (Zemin gerilmesi trapez yayılı yük) (inş.müh. Gürcan BERBEROĞLU tel:0532 366 02 04 www.betoncelik.com )
Z3: Dikkat sadece sarı hücrelere data girilecek.
D4: qt = | F4: 200 | H4: KN/m² | K4: (zemin taşıma gücü) | BF4: Bu hesaplar Prof.Dr.Tuncay Emrem "Betonarme" adlı kitaptan yararlanılmıştır.Evrim Yayınevi.
D5: d'= | E5: 50 | G5: mm | I5: =IF(E5<50,"artır.","") ->  | L5: (pas payı)
D6: d = h - d' = | H6: =+AK23 -> 0.9 | J6: - | K6: =+E5/1000 -> 0.05 | M6: = | N6: =+H6-K6 -> 0.85 | P6: m
D7: zemin birim hacim ağırlığı = g = | M7: 18 | O7: KN/m3
D8: zemin üst kotu ile temel tabanı kotu arası mesafe h' = | S8: 1.2 | U8: m
D9: qnet = qt - g * h' = | J9: =+F4 -> 200 | L9: - | M9: =+M7 -> 18 | O9: * | P9: =+S8 -> 1.2 | R9: = | S9: =+J9-M9*P9 -> 178.4 | V9: KN/m²
D10: Mo = | F10: =+J20 -> 55 | I10: + | J10: =+AF20 -> -75 | M10: - | N10: =+H18 -> 500 | Q10: * | R10: =+S31/2-F29 -> 2.05 | T10: + | U10: =+AD18 -> 450 | X10: * | Y10: =+S31/2-AF29 -> 1.85 | AA10: = | AB10: =+F10+J10-N10*R10+U10*Y10 -> -212.5 | AE10: KNm | AI10: (temel ortasına göre moment alınırsa)
D11: No = | F11: =+H18 -> 500 | I11: + | J11: =+AD18 -> 450 | M11: = | N11: =+F11+J11 -> 950 | Q11: KN
D12: s = No / A + - Mo / W
D13: A = | F13: =+AP29 -> 1.5 | H13: * | I13: =+S31 -> 6.9 | K13: = | L13: =+F13*I13 -> 10.35 | O13: m²
D14: W = | F14: =+AP29 -> 1.5 | H14: * | I14: =+S31 -> 6.9 | K14: ² / | L14: 6 | M14: = | N14: =+F14*I14^2/L14 -> 11.9025 | Q14: m3
D15: s2 = No / A + Mo / W = | K15: =+N11 -> 950 | N15: / | O15: =+L13 -> 10.35 | R15: + | S15: =+AB10 -> -212.5 | V15: / | W15: =+N14 -> 11.9025 | Z15: = | AA15: =+K15/O15+S15/W15 -> 73.93404747 | AD15: KN/m² | AF15: =IF(AA15<AJ15,"<",">") -> < | AG15: qtnet = | AJ15: =+S9 -> 178.4 | AM15: KN/m² | AP15: =IF(AA15<0,"uygun değil.",IF(AA15<AJ15,"uygun.","uygun değil.")) -> uygun.
D16: s1 = No / A - Mo / W = | K16: =+K15 -> 950 | N16: / | O16: =+O15 -> 10.35 | R16: - | S16: =+S15 -> -212.5 | V16: / | W16: =+W15 -> 11.9025 | Z16: = | AA16: =+K16/O16-S16/W16 -> 109.6408318 | AD16: KN/m² | AF16: =IF(AA16<AG16,"<",">") -> > | AG16: 0 | AI16: KN/m² | AL16: =IF(AA16>AJ15,"uygun değil.",IF(AA16>AG16,"uygun.","uygun değil.")) -> uygun.
H18: 500 | K18: KN | AD18: 450 | AG18: KN
G19: - | J19: + | AC19: - | AF19: + | AP19: kesit a-a
J20: 55 | M20: KNm | AF20: -75 | AI20: KNm
O21: a
AK22: m
AK23: 0.9 | AU23: =+AK23-AU25 -> 0.5 | AW23: m
AU25: 0.4 | AW25: m
O26: a
E27: 1.2 | G27: m | H27: 0.4 | J27: m | S27: 3.5 | U27: m | AD27: 0.4 | AF27: 1.4 | AH27: m | AM27: 0.45 | AO27: m | AP27: 0.6 | AR27: m | AS27: =+AM27 -> 0.45 | AU27: m
F29: =+E27+H27/2 -> 1.4 | H29: m | S29: =+S27+H27/2+AD27/2 -> 3.9 | U29: m | AF29: =+AF27+AD27/2 -> 1.6 | AH29: m | AO29: b= | AP29: =+AM27+AP27+AS27 -> 1.5 | AR29: m
R31: L= | S31: =+E27+H27+S27+AD27+AF27 -> 6.9 | U31: m
D33: KN/m² | G33: KN/m² | H33: KN/m² | I33: KN/m² | L33: KN/m² | V33: KN/m² | Z33: KN/m² | AC33: KN/m² | AD33: KN/m² | AE33: KN/m² | AH33: KN/m²
D36: =+AA16 -> 109.6408318 | G36: =D36+E27*(AH36-D36)/S31 -> 103.4309562 | H36: =D36+(E27+H27/2)*(AH36-D36)/S31 -> 102.395977 | I36: =D36+(E27+H27)*(AH36-D36)/S31 -> 101.3609977 | L36: =D36+(E27+H27+N6)*(AH36-D36)/S31 -> 96.96233589 | V36: =SQRT(H18*2*(AH36-D36)/(S31*AP29)+D36^2) -> 92.58067368 | Z36: =D36+(E27+H27+S27-N6)*(AH36-D36)/S31 -> 87.64752259 | AC36: =D36+(E27+H27+S27)*(AH36-D36)/S31 -> 83.24886076 | AD36: =D36+(E27+H27+S27+AD27/2)*(AH36-D36)/S31 -> 82.21388151 | AE36: =D36+(E27+H27+S27+AD27)*(AH36-D36)/S31 -> 81.17890225 | AH36: =+AA15 -> 73.93404747
M44: (mesnet yüz.d mesafede)
V45: (mesnet yüz.d mesafede) | AF45: mesnet yüzü
O46: kesme kuvvetinin sıfır olduğu yer
AC47: =+AD18-AC56 -> 262.6224852
G48: kesme kuvveti diyagramı (KN) | AA48: =-((AC36+AH36)/2*(AD27+AF27)*AP29-AD18) -> 237.8030739
H49: =(D36+H36)/2*F29*AP29 -> 222.6386492
E50: =(D36+G36)/2*E27*AP29 -> 191.7646092 | X50: =-((Z36+AH36)/2*(AF27+AD27+N6)*AP29-AD18) -> 128.8566295
AF55: =(AE36+AH36)/2*AF27*AP29 -> 162.8685972
AC56: =(AD36+AH36)/2*(AF27+AD27/2)*AP29 -> 187.3775148
J57: =-((D36+I36)/2*(F29+H27/2)*AP29-H18) -> 246.7978046 | M57: =-((D36+L36)/2*(E27+H27+N6)*AP29-H18) -> 120.3666795
G58: =+H18-H49 -> 277.3613508
F59: =+F29 -> 1.4 | H59: m | M59: x= | N59: =H18*2/(AP29*(D36+V36))-F29 -> 1.896714982 | Q59: m | Z59: =+S31-N59 -> 5.003285018 | AB59: m | AF59: =+AF29 -> 1.6 | AH59: m
V61: =-((D36+V36)/2*(F59+N59)*AP29*((2*D36+V36)/(D36+V36)*(F59+N59)/3)+J20-H18*N59) -> 46.00181772
G62: moment diyagramı (KNm)
E68: =(D36+G36)/2*E27*AP29*((2*D36+G36)/(D36+G36)*E27/3) -> 116.1765431 | AA68: =(D36+AC36)/2*(E27+H27+S27)*AP29*((2*D36+AC36)/(D36+AC36)*(E27+H27+S27)/3)+J20-H18*(H27/2+S27) -> 172.2047341 | AF68: =(AE36+AH36)/2*AF27*AP29*((2*AH36+AE36)/(AH36+AE36)*AF27/3) -> 112.2330286
F69: =(D36+H36)/2*F29*AP29*((2*D36+H36)/(D36+H36)*F29/3) -> 157.6220438 | AB69: =(AD36+AH36)/2*AF29*AP29*((2*AH36+AD36)/(AD36+AH36)*AF29/3)-AF20 -> 222.2524649
J70: =(D36+I36)/2*(E27+H27)*AP29*((2*D36+I36)/(D36+I36)*(E27+H27)/3)+J20-H18*H27/2 -> 160.2113032
G71: =(D36+H36)/2*F29*AP29*((2*D36+H36)/(D36+H36)*F29/3)+J20 -> 212.6220438 | AD71: =(AD36+AH36)/2*AF29*AP29*((2*AH36+AD36)/(AD36+AH36)*AF29/3) -> 147.2524649
B74: 2 ADET KOLONLU SÜREKLİ TEMEL MOMENT VE KESME KUVVET HESABI (Zemin gerilmesi düzgün yayılı yük) (inş.müh. Gürcan BERBEROĞLU tel:0532 366 02 04 www.betoncelik.com )
Z75: Dikkat sadece sarı hücrelere data girilecek.
D76: qt = | F76: 350 | H76: KN/m² | K76: (zemin taşıma gücü)
D77: d'= | E77: 50 | G77: mm | I77: =IF(E77<50,"artır.","") ->  | L77: (pas payı)
D78: d = h - d' = | H78: =+AK97 -> 0.9 | J78: - | K78: =+E77/1000 -> 0.05 | M78: = | N78: =+H78-K78 -> 0.85 | P78: m
D79: zemin birim hacim ağırlığı = g = | M79: 18 | O79: KN/m3
D80: zemin üst kotu ile temel tabanı kotu arası mesafe h' = | S80: 1.2 | U80: m
D81: qnet = qt - g * h' = | J81: =+F76 -> 350 | L81: - | M81: =+M79 -> 18 | O81: * | P81: =+S80 -> 1.2 | R81: = | S81: =+J81-M81*P81 -> 328.4 | V81: KN/m²
D82: qo = å N / ( b * L ) = | J82: =+H92+AD92 -> 2100 | M82: /( | N82: =+AP103 -> 1.4 | P82: * | Q82: =+S105 -> 7.258095238 | S82: )= | T82: =+J82/(N82*Q82) -> 206.6657919 | W82: KN/m²
D83: qo = | F83: =+T82 -> 206.6657919 | I83: KN/m² | K83: =IF(F83<N83,"<",">") -> < | L83: qnet = | N83: =+S81 -> 328.4 | Q83: KN/m² | T83: =IF(F83<N83,"uygun.","uygun değil.") -> uygun.
D84: qz = å N / L = | I84: =+J82 -> 2100 | L84: / | M84: =+S105 -> 7.258095238 | O84: = | P84: =+I84/M84 -> 289.3321086 | S84: KN/m
D85: ilk kolon noktasına göre moment alınırsa
D86: M= | E86: =+J94 -> 186 | H86: + | I86: =+AD92 -> 1170 | L86: * | M86: =+S103 -> 4 | O86: + | P86: =+AF94 -> 130 | S86: = | T86: =+E86+I86*M86+P86 -> 4996 | W86: KNm
D87: å N = | F87: =+J82 -> 2100 | I87: KN | L87: x = M / å N = | P87: =+T86 -> 4996 | S87: / | T87: =+F87 -> 2100 | W87: = | X87: =+P87/T87 -> 2.379047619 | Z87: m
D88: bulunan bu x mesafesine göre simetrik seçilirse zemin gerilmesi düzgün yayılı olacaktır.
D89: sol konsol boyu = | J89: =+F103 -> 1.25 | L89: m. | M89: seçilmiş.
D90: sağ konsol boyu = | J90: 2 | K90: *( | L90: =+X87 -> 2.379047619 | N90: + | O90: =+F103 -> 1.25 | Q90: ) - | R90: =+S103 -> 4 | T90: - | U90: =+F103 -> 1.25 | W90: = | X90: =+J90*(L90+O90)-R90-U90 -> 2.008095238 | AA90: m
H92: 930 | K92: KN | AD92: 1170 | AG92: KN
G93: - | J93: + | AC93: - | AF93: + | AP93: kesit a-a
J94: 186 | M94: KNm | AF94: 130 | AI94: KNm
P95: a
AK96: m
AK97: 0.9 | AU97: =+AK97-AU99 -> 0.5 | AW97: m
AU99: 0.4 | AW99: m
P100: a
E101: 1 | G101: m | H101: 0.5 | J101: m | S101: 3.5 | U101: m | AD101: 0.5 | AF101: =+AF103-AD101/2 -> 1.758095238 | AH101: m | AM101: 0.45 | AO101: m | AP101: 0.5 | AR101: m | AS101: =+AM101 -> 0.45 | AU101: m
F103: =+E101+H101/2 -> 1.25 | H103: m | S103: =+S101+H101/2+AD101/2 -> 4 | U103: m | AF103: =+X90 -> 2.008095238 | AH103: m | AO103: b= | AP103: =+AM101+AP101+AS101 -> 1.4 | AR103: m
R105: L= | S105: =+E101+H101+S101+AD101+AF101 -> 7.258095238 | U105: m
P110: qz = | R110: =+P84 -> 289.3321086 | U110: KN/m
G111: kesme kuvveti diyagramı (KN)
G112: =R110*F103 -> 361.6651358 | AC112: =+AD92-AD119 -> 588.9935704 | AU112: mesnet yüzü
E113: =+R110*E101 -> 289.3321086 | X113: =AC112-R110*(AD101/2+N78) -> 270.7282509 | AA113: =+AC112-R110*AD101/2 -> 516.6605432
AM117: mesnet yüz. d mesafede
J118: =+G119-R110*H101/2 -> 496.001837 | M118: =+G119-R110*(H101/2+N78) -> 250.0695447 | AF118: =+AF101*R110 -> 508.6734024
G119: =+H92-G112 -> 568.3348642 | AD119: =+AF103*R110 -> 581.0064296
F120: =+F103 -> 1.25 | H120: m | N120: =G119*S103/(G119+AC112) -> 1.96429932 | P120: m | X120: =+S103-N120 -> 2.03570068 | Z120: m | AF120: =+AF103 -> 2.008095238 | AH120: m
S122: =-R110*(F120+N120)*(F120+N120)/2+H92*N120-J94 -> 146.1491837
F123: moment diyagramı (KNm)
E127: =+E113*E101/2 -> 144.6660543 | AF127: =+AF118*AF101/2 -> 447.1481433
F128: =F103*R110*F103/2 -> 226.0407099 | AE128: =+R110*(AF101+AD101/2)*(AF101+AD101/2)/2 -> 583.3581223
J129: =R110*(E101+H101)*(E101+H101)/2-H92*H101/2+J94 -> 278.9986222 | AA129: =R110*(AD101+AF101)*(AD101+AF101)/2-AD92*AD101/2-AF94 -> 315.1513581
H130: =R110*F103*F103/2+J94 -> 412.0407099 | AC130: =R110*AF103*AF103/2-AF94 -> 453.3581223
B133: 2 ADET KOLONLU SÜREKLİ TEMEL MOMENT VE KESME KUVVET HESABI (Zemin gerilmesi değişken) (inş.müh. Gürcan BERBEROĞLU tel:0532 366 02 04 www.betoncelik.com )
Z134: Dikkat sadece sarı hücrelere data girilecek.
D135: qt = | F135: 350 | H135: KN/m² | K135: (zemin taşıma gücü)
D136: d'= | E136: 50 | G136: mm | I136: =IF(E136<50,"artır.","") ->  | L136: (pas payı) | AD136: kolon altı gerilmeler
D137: d = h - d' = | H137: =+AK149 -> 1.1 | J137: - | K137: =+E136/1000 -> 0.05 | M137: = | N137: =+H137-K137 -> 1.05 | P137: m | AD137: q1' = | AF137: =+H144 -> 930 | AI137: /( | AJ137: =+F155 -> 1.25 | AL137: + | AM137: =+S155 -> 4 | AO137: / | AP137: 2 | AQ137: )= | AR137: =+AF137/(AJ137+AM137/AP137) -> 286.1538462 | AU137: KN/m
D138: zemin birim hacim ağırlığı = g = | M138: 18 | O138: KN/m3 | AD138: q2' = | AF138: =+AD144 -> 1170 | AI138: /( | AJ138: =+AF155 -> 1.9 | AL138: + | AM138: =+S155 -> 4 | AO138: / | AP138: 2 | AQ138: )= | AR138: =+AF138/(AJ138+AM138/AP138) -> 300 | AU138: KN/m
D139: zemin üst kotu ile temel tabanı kotu arası mesafe h' = | S139: 1.2 | U139: m | AD139: ortalama kolon altı gerilmeler
D140: qnet = qt - g * h' = | J140: =+F135 -> 350 | L140: - | M140: =+M138 -> 18 | O140: * | P140: =+S139 -> 1.2 | R140: = | S140: =+J140-M140*P140 -> 328.4 | V140: KN/m² | AD140: q1 = | AF140: =+AR137 -> 286.1538462 | AI140: KN/m
D141: qo = qmax / b = | I141: =MAX(AR137,AR138,AF140,AP141,AF142) -> 300 | L141: / | M141: =+AP155 -> 1.5 | O141: = | P141: =+I141/M141 -> 200 | S141: KN/m² | AD141: q2 = ( | AF141: =+AR137 -> 286.1538462 | AI141: + | AJ141: =+AR138 -> 300 | AM141: )/ | AN141: 2 | AO141: = | AP141: =(AF141+AJ141)/AN141 -> 293.0769231 | AS141: KN/m
D142: qo = | F142: =+P141 -> 200 | I142: KN/m² | K142: =IF(F142<N142,"<",">") -> < | L142: qnet = | N142: =+S140 -> 328.4 | Q142: KN/m² | T142: =IF(F142<N142,"uygun.","uygun değil.") -> uygun. | AD142: q3 = | AF142: =+AR138 -> 300 | AI142: KN/m
H144: 930 | K144: KN | AD144: 1170 | AG144: KN
G145: - | J145: + | AC145: - | AF145: + | AP145: kesit a-a
J146: 186 | M146: KNm | AF146: 130 | AI146: KNm
P147: a
AK148: m
AK149: 1.1 | AU149: =+AK149-AU151 -> 0.7 | AW149: m
AU151: 0.4 | AW151: m
P152: a
E153: 1 | G153: m | H153: 0.5 | J153: m | S153: 3.5 | U153: m | AD153: 0.5 | AF153: 1.65 | AH153: m | AM153: 0.45 | AO153: m | AP153: 0.6 | AR153: m | AS153: =+AM153 -> 0.45 | AU153: m
F155: =+E153+H153/2 -> 1.25 | H155: m | S155: =+S153+H153/2+AD153/2 -> 4 | U155: m | AF155: =+AD153/2+AF153 -> 1.9 | AH155: m | AO155: b= | AP155: =+AM153+AP153+AS153 -> 1.5 | AR155: m
R157: L= | S157: =+E153+H153+S153+AD153+AF153 -> 7.15 | U157: m
D162: =+AF140 -> 286.1538462 | G162: KN/m | R162: =+AP141 -> 293.0769231 | U162: KN/m | AE162: =+AF142 -> 300 | AH162: KN/m
G163: kesme kuvveti diyagramı (KN)
G164: =D162*F155 -> 357.6923077 | AC164: =(0.5*R162*S155^2+AC182-H182)/S155 -> 586.6394231 | AU164: mesnet yüzü
E165: =+D162*E153 -> 286.1538462 | X165: =AC164-R162*(AD153/2+N137) -> 205.6394231 | AA165: =+AC164-R162*AD153/2 -> 513.3701923
AM169: mesnet yüz. d mesafede
J170: =+G171-R162*H153/2 -> 512.3990385 | M170: =+G171-R162*(H153/2+N137) -> 204.6682692 | AF170: =+AF153*AE162 -> 495
G171: =+R162*S155-AC164 -> 585.6682692 | AD171: =+AF155*AE162 -> 570
F172: =+F155 -> 1.25 | H172: m | N172: =G171*S155/(G171+AC164) -> 1.998343176 | P172: m | X172: =+S155-N172 -> 2.001656824 | Z172: m | AF172: =+AF155 -> 1.9 | AH172: m
S174: =(((H182-AC182)/S155+R162*S155*0.5)^2/(2*R162))-H182 -> 175.6254023
F175: moment diyagramı (KNm)
E179: =E165*E153/2 -> 143.0769231 | AF179: =+AF170*AF153/2 -> 408.375
F180: =D162*F155*F155/2 -> 223.5576923 | AE180: =AF155*AE162*AF155/2 -> 541.5
J181: =H182-(J170+G171)/2*(H153/2) -> 272.2992788 | AA181: =+AC182-(AA165+AC164)/2*AD153/2 -> 273.9987981
H182: =F155*D162*F155/2+J146 -> 409.5576923 | AC182: =AF155*AE162*AF155/2-AF146 -> 411.5
B185: 2 ADET KOLONLU RİJİT , SÜREKLİ , DEĞİŞKEN GENİŞLİKLİ TEMEL MOMENT VE KESME KUVVET HESABI (Zemin gerilmesi düzgün yayılı yük) (inş.müh. Gürcan BERBEROĞLU tel:0532 366 02 04 www.betoncelik.com )
Z186: Dikkat sadece sarı hücrelere data girilecek.
D187: qt = | F187: 350 | H187: KN/m² | K187: (zemin taşıma gücü)
D188: d'= | E188: 50 | G188: mm | I188: =IF(E188<50,"artır.","") ->  | L188: (pas payı)
D189: d = h - d' = | H189: =+AL205 -> 0.9 | J189: - | K189: =+E188/1000 -> 0.05 | M189: = | N189: =+H189-K189 -> 0.85 | P189: m
D190: zemin birim hacim ağırlığı = g = | M190: 20 | O190: KN/m3
D191: zemin üst kotu ile temel tabanı kotu arası mesafe h' = | S191: 1.2 | U191: m
D192: qnet = qt - g * h' = | J192: =+F187 -> 350 | L192: - | M192: =+M190 -> 20 | O192: * | P192: =+S191 -> 1.2 | R192: = | S192: =+J192-M192*P192 -> 326 | V192: KN/m²
D193: qo = å N / ( ( L1 + L 2 ) / 2 * L ) = | N193: =+I200+AE200 -> 1700 | Q193: / ( ( | S193: =+C224 -> 1.25 | U193: + | V193: =+AK225 -> 0.8 | X193: )/ | Y193: 2 | Z193: * | AA193: =+T213 -> 5.2 | AC193: )= | AD193: =+N193/((S193+V193)/Y193*AA193) -> 318.9493433 | AG193: KN/m²
D194: qo = | F194: =+AD193 -> 318.9493433 | I194: KN/m² | K194: =IF(F194<N194,"<",">") -> < | L194: qnet = | N194: =+S192 -> 326 | Q194: KN/m² | T194: =IF(F194<N194,"uygun.","uygun değil.") -> uygun.
D195: ilk kolon noktasına göre moment alınırsa
D196: M= | E196: =+K202 -> 85 | H196: + | I196: =+AE200 -> 800 | L196: * | M196: =+T211 -> 2.9 | O196: + | P196: =+AG202 -> 75 | S196: = | T196: =+E196+I196*M196+P196 -> 2480 | W196: KNm
D197: å N = | F197: =+N193 -> 1700 | I197: KN | L197: x = M / å N = | P197: =+T196 -> 2480 | S197: / | T197: =+F197 -> 1700 | W197: = | X197: =+P197/T197 -> 1.458823529 | Z197: m
D198: ex = L / 3 * ( 2 * L2 + L1 ) / ( L1 + L2 ) = | P198: =+T213 -> 5.2 | R198: / | S198: 3 | T198: *( | U198: 2 | V198: * | W198: =+AK225 -> 0.8 | Y198: + | Z198: =+C224 -> 1.25 | AB198: )/( | AC198: =+W198 -> 0.8 | AE198: + | AF198: =+Z198 -> 1.25 | AH198: )= | AI198: =P198/S198*(U198*W198+Z198)/(AC198+AF198) -> 2.409756098 | AK198: m
I200: 900 | L200: KN | AE200: 800 | AH200: KN
H201: - | K201: + | AD201: - | AG201: + | AQ201: kesit a-a
K202: 85 | N202: KNm | AG202: 75 | AJ202: KNm
P203: a
AL204: m
AL205: 0.9 | AV205: =+AL205-AV207 -> 0.6 | AX205: m
AV207: 0.3 | AX207: m
P208: a
F209: =+G211-I209/2 -> 0.7759325681 | H209: m | I209: 0.35 | K209: m | T209: 2.5 | V209: m | AE209: 0.45 | AG209: =+AG211-AE209/2 -> 1.124067432 | AI209: m | AN209: c | AQ209: 0.5 | AS209: m | AT209: =+AN209 -> c
G211: =+G217 -> 0.9509325681 | I211: m | T211: =+T209+I209/2+AE209/2 -> 2.9 | V211: m | AG211: =+AG217 -> 1.349067432 | AI211: m | AQ211: b
S213: L= | T213: 5.2 | V213: m
I215: ex = | K215: =+AI198 -> 2.409756098 | M215: m | Y215: =+T213-K215 -> 2.790243902 | AA215: m
G217: =+K215-L217 -> 0.9509325681 | I217: m | K217: x= | L217: =+X197 -> 1.458823529 | N217: m | Y217: =+T211-L217 -> 1.441176471 | AA217: m | AG217: =+Y215-Y217 -> 1.349067432 | AI217: m
AK219: Not : G noktası temel ağırlık merkezidir.
AP221: nokta no | AS221: b | AV221: c
AS222: (m) | AV222: (m)
C223: m | AL223: =IF(C224>AK225,"","azalt.") ->  | AP223: 1 | AS223: =(2*(T213-F209)*(C224-AK225)/2/T213)+AK225 -> 1.182851989 | AV223: =(AS223-AQ209)/2 -> 0.3414259946
C224: 1.25 | AK224: m | AP224: 2 | AS224: =(2*(T213-F209-I209/2)*(C224-AK225)/2/T213)+AK225 -> 1.167707759 | AV224: =(AS224-AQ209)/2 -> 0.3338538793
AK225: 0.8 | AP225: 3 | AS225: =(2*(T213-F209-I209)*(C224-AK225)/2/T213)+AK225 -> 1.152563528 | AV225: =(AS225-AQ209)/2 -> 0.3262817639
AP226: 4 | AS226: =(2*(T213-F209-I209-N189)*(C224-AK225)/2/T213)+AK225 -> 1.079005835 | AV226: =(AS226-AQ209)/2 -> 0.2895029177
C227: L1= | AP227: 5 | AS227: =(2*(T213-F209-I209/2-O253)*(C224-AK225)/2/T213)+AK225 -> 1.036396472 | AV227: =(AS227-AQ209)/2 -> 0.268198236
AK228: L2= | AP228: 6 | AS228: =(2*(T213-F209-I209-T209+N189)*(C224-AK225)/2/T213)+AK225 -> 1.009775066 | AV228: =(AS228-AQ209)/2 -> 0.2548875331
AP229: 7 | AS229: =(2*(T213-F209-I209-T209)*(C224-AK225)/2/T213)+AK225 -> 0.9362173739 | AV229: =(AS229-AQ209)/2 -> 0.218108687
AP230: 8 | AS230: =(2*(T213-F209-I209-T209-AE209/2)*(C224-AK225)/2/T213)+AK225 -> 0.9167462201 | AV230: =(AS230-AQ209)/2 -> 0.20837311
AP231: 9 | AS231: =(2*(T213-F209-I209-T209-AE209)*(C224-AK225)/2/T213)+AK225 -> 0.8972750662 | AV231: =(AS231-AQ209)/2 -> 0.1986375331
AK235: düzgün yayılı yük
O236: =+AD193 -> 318.9493433 | R236: KN/m²
N238: (mesnet yüz.d mesafede)
W239: (mesnet yüz.d mesafede) | AG239: mesnet yüzü
P240: kesme kuvvetinin sıfır olduğu yer
AD241: =+AE200-AD250 -> 430.6556375
H242: kesme kuvveti diyagramı (KN) | AB242: =-(O236*(AE209+AG209)*(AS229+AK225)/2-AE200) -> 364.1679663
I243: =O236*G211*(C224+AS224)/2 -> 366.6445573
F244: =O236*F209*(C224+AS223)/2 -> 301.0449771 | Y244: =-(O236*(AG209+AE209+N189)*(AK225+AS228)/2-AE200) -> 100.3819367
AG249: =O236*AG209*(AS231+AK225)/2 -> 304.2540115
AD250: =O236*AG211*(AS230+AK225)/2 -> 369.3443625
K251: =-(O236*(G211+I209/2)*(C224+AS225)/2-I200) -> 468.6011549 | N251: =-(O236*(F209+I209+N189)*(C224+AS226)/2-I200) -> 166.1041821
H252: =+I200-I243 -> 533.3554427
G253: =+G211 -> 0.9509325681 | I253: m | N253: x= | O253: =((-((T213*(((C224-AK225)/T213)/2*O236))+((AK225+C224)/2*O236))+SQRT(((T213*(((C224-AK225)/T213)/2*O236))+((AK225+C224)/2*O236))^2-4*-(((C224-AK225)/T213)/2*O236)*(-I200)))/(2*-(((C224-AK225)/T213)/2*O236)))-G253 -> 1.517374867 | R253: m | AA253: =+T213-O253 -> 3.682625133 | AC253: m | AG253: =+AG211 -> 1.349067432 | AI253: m
W255: =-((C224+AS227)/2*(G253+O253)*O236*((2*C224+AS227)/(C224+AS227)*(G253+O253)/3)-I200*O253+K202) -> 135.3092871
H256: moment diyagramı (KNm)
F262: =O236*F209*(C224+AS223)/2*((2*C224+AS223)/(AS223+C224)*F209/3) -> 117.8698386 | AB262: =O236*(AE209+AG209)*(AS229+AK225)/2*((2*AK225+AS229)/(AS229+AK225)*(AE209+AG209)/3)-AG202-AE200*AE209/2 -> 79.04394331 | AG262: =O236*AG209*(AK225+AS231)/2*((2*AK225+AS231)/(AK225+AS231)*AG209/3) -> 167.7341812
G263: =O236*G211*(C224+AS224)/2*((2*C224+AS224)/(AS224+C224)*G211/3) -> 176.3050001 | AC263: =O236*AG211*(AS230+AK225)/2*((2*AK225+AS230)/(AS230+AK225)*AG211/3)-AG202 -> 168.4877985
K264: =O236*(F209+I209)*(C224+AS225)/2*((2*C224+AS225)/(C224+AS225)*(F209+I209)/3)+K202-I200*I209/2 -> 173.646125
H265: =O236*G211*(C224+AS224)/2*((2*C224+AS224)/(C224+AS224)*G211/3)+K202 -> 261.3050001 | AE265: =O236*AG211*(AS230+AK225)/2*((2*AK225+AS230)/(AS230+AK225)*AG211/3) -> 243.4877985
B268: 2 ADET KOLONLU RİJİT , SÜREKLİ , DEĞİŞKEN GENİŞLİKLİ TEMEL MOMENT VE KESME KUVVET HESABI (Zemin gerilmesi trapez yayılı yük) (inş.müh. Gürcan BERBEROĞLU tel:0532 366 02 04 www.betoncelik.com )
Z269: Dikkat sadece sarı hücrelere data girilecek.
D270: qt = | F270: 350 | H270: KN/m² | K270: (zemin taşıma gücü)
D271: d'= | E271: 50 | G271: mm | I271: =IF(E271<50,"artır.","") ->  | L271: (pas payı)
D272: d = h - d' = | H272: =+AL294 -> 1.2 | J272: - | K272: =+E271/1000 -> 0.05 | M272: = | N272: =+H272-K272 -> 1.15 | P272: m
D273: zemin birim hacim ağırlığı = g = | M273: 20 | O273: KN/m3
D274: zemin üst kotu ile temel tabanı kotu arası mesafe h' = | S274: 1.2 | U274: m
D275: qnet = qt - g * h' = | J275: =+F270 -> 350 | L275: - | M275: =+M273 -> 20 | O275: * | P275: =+S274 -> 1.2 | R275: = | S275: =+J275-M275*P275 -> 326 | V275: KN/m²
D276: A = ( | F276: =+AK314 -> 0.8 | H276: + | I276: =+C313 -> 1.25 | K276: )/ | L276: 2 | M276: * | N276: =+T302 -> 6.4 | P276: = | Q276: =(F276+I276)/L276*N276 -> 6.56 | T276: m²
D277: I = | E277: =+T302 -> 6.4 | G277: 3/ | H277: 36 | I277: *( | J277: =+C313 -> 1.25 | L277: ²+ | M277: 4 | N277: * | O277: =+C313 -> 1.25 | Q277: * | R277: =+AK314 -> 0.8 | T277: + | U277: =+AK314 -> 0.8 | W277: ² ) / ( | Y277: =+C313 -> 1.25 | AA277: + | AB277: =+AK314 -> 0.8 | AD277: )= | AE277: =E277^3/H277*(J277^2+M277*O277*R277+U277^2)/(Y277+AB277) -> 22.03181789 | AH277: m4 | AK277: (atalet momenti)
D278: W = | F278: =+AE277 -> 22.03181789 | I278: / | J278: =+Y304 -> 3.434146341 | L278: = | M278: =+F278/J278 -> 6.415515152 | P278: m3 | R278: (mukavemet momenti)
D279: s = No / A + - Mo / W
D280: Mo = | F280: =+K291 -> 85 | I280: + | J280: =+AG291 -> 75 | M280: - | N280: =+I289 -> 350 | Q280: * | R280: =+L306 -> 1.890853659 | T280: + | U280: =+AE289 -> 650 | X280: * | Y280: =+Y306 -> 2.009146341 | AA280: = | AB280: =+F280+J280-N280*R280+U280*Y280 -> 804.1463415 | AE280: KNm | AI280: (temel ortasına göre moment alınırsa)
D281: No = | F281: =+I289 -> 350 | I281: + | J281: =+AE289 -> 650 | M281: = | N281: =+F281+J281 -> 1000 | Q281: KN
D282: s2 = No / A + Mo / W = | K282: =+N281 -> 1000 | N282: / | O282: =+Q276 -> 6.56 | R282: + | S282: =+AB280 -> 804.1463415 | V282: / | W282: =+M278 -> 6.415515152 | Z282: = | AA282: =+K282/O282+S282/W282 -> 277.783026 | AD282: KN/m² | AF282: =IF(AA282<AJ282,"<",">") -> < | AG282: qtnet = | AJ282: =+S275 -> 326 | AM282: KN/m² | AP282: =IF(AA282<0,"uygun değil.",IF(AA282<AJ282,"uygun.","uygun değil.")) -> uygun.
D283: s1 = No / A - Mo / W = | K283: =+K282 -> 1000 | N283: / | O283: =+O282 -> 6.56 | R283: - | S283: =+S282 -> 804.1463415 | V283: / | W283: =+W282 -> 6.415515152 | Z283: = | AA283: =+K283/O283-S283/W283 -> 27.09502278 | AD283: KN/m² | AF283: =IF(AA283<AG283,"<",">") -> > | AG283: 0 | AI283: KN/m² | AL283: =IF(AA283>AJ282,"uygun değil.",IF(AA283>AG283,"uygun.","uygun değil.")) -> uygun.
D284: ex = L / 3 * ( 2 * L2 + L1 ) / ( L1 + L2 ) = | P284: =+T302 -> 6.4 | R284: / | S284: 3 | T284: *( | U284: 2 | V284: * | W284: =+AK314 -> 0.8 | Y284: + | Z284: =+C313 -> 1.25 | AB284: )/( | AC284: =+W284 -> 0.8 | AE284: + | AF284: =+Z284 -> 1.25 | AH284: )= | AI284: =P284/S284*(U284*W284+Z284)/(AC284+AF284) -> 2.965853659 | AK284: m
D285: kesme kuvvetinin sıfır olduğu mesafe x1
... 566 more rows
